fUST/lending_fUST_20241029
["ID","MTS","AMOUNT","RATE_DAILY","PERIOD"]
[340953702,1730153433335,-500.0,0.00025001,30]
[340953704,1730153433344,-500.0,0.00025001,30]
[340953706,1730153433354,-500.0,0.00025001,30]
[340953708,1730153433364,-500.0,0.00025001,30]
[340953710,1730153433373,-500.0,0.00025053,2]
[340953712,1730153433383,-500.0,0.00025053,2]
[340953714,1730153433393,-244.576686,0.00025198,2]
[340953716,1730153433404,-494.873452,0.00025198,2]
[340953718,1730153433414,-500.0,0.000252,2]
[340953720,1730153433428,-500.0,0.00025205,4]
[340953722,1730153433438,-586.96,0.00025205,4]
[340953724,1730153433448,-500.0,0.00025205,4]
[340953726,1730153433459,-500.0,0.00025205,4]
[340953729,1730153433469,-500.0,0.00025205,4]
[340953731,1730153433479,-500.0,0.00025205,4]
[340953733,1730153433489,-500.0,0.00025205,4]
[340953735,1730153433499,-465.5882161,0.00025205,4]
[340953737,1730153433508,-500.0,0.00025205,4]
[340953738,1730153433518,-942.34,0.00025205,4]
[340953740,1730153433529,-500.0,0.00025205,4]
[340953742,1730153433538,-1539.45,0.00025205,4]
[340953744,1730153433548,-500.0,0.00025205,4]
[340953746,1730153433560,-171.7897168,0.00025205,4]
[340953748,1730153433569,-500.0,0.00025205,4]
[340953750,1730153433578,-488.53213537,0.00025479,4]
[340953753,1730153433593,-11.46786463,0.00025479,4]
[340953755,1730153433603,-586.96,0.00025479,4]
[340953757,1730153433614,-500.0,0.00025479,4]
[340953759,1730153433624,-500.0,0.00025479,4]
[340953761,1730153433634,-500.0,0.00025479,4]
[340953763,1730153433644,-500.0,0.00025479,4]
[340953765,1730153433658,-500.0,0.00025479,4]
[340953767,1730153433669,-500.0,0.00025479,4]
[340953769,1730153433679,-942.34,0.00025479,4]
[340953771,1730153433691,-500.0,0.00025479,4]
[340953773,1730153433701,-1539.45,0.00025479,4]
[340953774,1730153433711,-500.0,0.00025479,4]
[340953776,1730153433722,-500.0,0.00025479,4]
[340953777,1730153433733,-244.576686,0.00025505,2]
[340953779,1730153433744,-494.873452,0.00025505,2]
[340953781,1730153433754,-500.0,0.00025753,4]
[340953783,1730153433764,-586.96,0.00025753,4]
[340953785,1730153433774,-500.0,0.00025753,4]
[340953787,1730153433784,-500.0,0.00025753,4]
[340953789,1730153433794,-500.0,0.00025753,4]
[340953791,1730153433805,-500.0,0.00025753,4]
[340953793,1730153433815,-500.0,0.00025753,4]
[340953795,1730153433825,-500.0,0.00025753,4]
[340953797,1730153433835,-942.34,0.00025753,4]
[340953799,1730153433845,-500.0,0.00025753,4]
[340953801,1730153433856,-1539.45,0.00025753,4]
[340953802,1730153433866,-500.0,0.00025753,4]
[340953803,1730153433876,-559.80710549,0.00025753,4]
[340953804,1730153433886,-244.576686,0.00025812,2]
[340953805,1730153433896,-494.873452,0.00025812,2]
[340953806,1730153433906,-164.0,0.0002589,2]
[340953807,1730153433916,-377.7657259,0.00025965,2]
[340953808,1730153433926,-153.0,0.00025965,2]
[340953809,1730153433935,-153.0,0.00025965,2]
[340953810,1730153433945,-500.0,0.00026027,4]
[340953811,1730153433955,-586.96,0.00026027,4]
[340953812,1730153433965,-463.69453889,0.00026027,4]
[340953814,1730153433975,-450.22135691,0.00026027,4]
[340953950,1730153438814,-49.77864309,0.00026027,4]
[340953952,1730153438824,-500.0,0.00026027,4]
[340953954,1730153438835,-500.0,0.00026027,4]
[340953956,1730153438845,-500.0,0.00026027,4]
[340953958,1730153438856,-500.0,0.00026027,4]
[340953961,1730153438866,-942.34,0.00026027,4]
[340953962,1730153438877,-500.0,0.00026027,4]
[340953964,1730153438887,-1539.45,0.00026027,4]
[340953966,1730153438897,-500.0,0.00026027,4]
[340953967,1730153438907,-166.666666,0.00026266,2]
[340953969,1730153438918,-240.13,0.00026281,10]
[340953971,1730153438928,-7170.06113163,0.00026291,4]
[340954094,1730153440472,-30859.91602687,0.00026291,4]
[340954095,1730153440482,-9101.84365607,0.00026291,4]
[340954096,1730153440492,-500.0,0.00026301,4]
[340954097,1730153440502,-586.96,0.00026301,4]
[340954098,1730153440512,-500.0,0.00026301,4]
[340954099,1730153440522,-500.0,0.00026301,4]
[340954100,1730153440531,-500.0,0.00026301,4]
[340954101,1730153440541,-523.12963453,0.00026301,4]
[340954102,1730153440551,-500.0,0.00026301,4]
[340954103,1730153440563,-942.34,0.00026301,4]
[340954104,1730153440573,-500.0,0.00026301,4]
[340954105,1730153440583,-1539.45,0.00026301,4]
[340954106,1730153440593,-500.0,0.00026301,4]
[340954107,1730153440603,-1000.0,0.0002636,2]
[340954108,1730153440613,-1000.0,0.00026423,2]
[340954109,1730153440622,-1000.0,0.00026423,2]
[340954110,1730153440632,-1000.0,0.0002657,2]
[340954111,1730153440641,-500.0,0.00026575,4]
[340954112,1730153440652,-586.96,0.00026575,4]
[340954113,1730153440664,-500.0,0.00026575,4]
[340954114,1730153440673,-432.07275696,0.00026575,4]
[340954115,1730153440684,-500.0,0.00026575,4]
[340954116,1730153440694,-500.0,0.00026575,4]
[340954117,1730153440706,-942.34,0.00026575,4]
[340954118,1730153440716,-478.24912638,0.00026575,4]
[340954119,1730153440728,-1539.45,0.00026575,4]
[340954120,1730153440738,-500.0,0.00026575,4]
[340954121,1730153440747,-420.0,0.0002672,2]
[340954122,1730153440757,-150.0,0.00026747,2]
[340954123,1730153440766,-150.0,0.00026751,2]
[340954124,1730153440775,-153.0,0.00026787,2]
[340954125,1730153440785,-153.0,0.00026787,2]
[340954126,1730153440794,-153.0,0.00026787,2]
[340954127,1730153440804,-500.0,0.00026849,4]
[340954128,1730153440814,-586.96,0.00026849,4]
[340954129,1730153440824,-500.0,0.00026849,4]
[340954130,1730153440834,-500.0,0.00026849,4]
[340954131,1730153440844,-500.0,0.00026849,4]
[340954132,1730153440854,-942.34,0.00026849,4]
[340954133,1730153440863,-1539.45,0.00026849,4]
[340954134,1730153440872,-500.0,0.00026849,4]
[340954135,1730153440882,-280.2427044,0.00027,2]
[340954136,1730153440891,-493.92393373,0.00027007,2]
[340954137,1730153440901,-500.0,0.00027011,7]
[340954138,1730153440911,-151.0,0.00027038,3]
[340954139,1730153440921,-214.94832287,0.00027096,2]
[340954140,1730153440930,-500.0,0.00027096,2]
[340954141,1730153440939,-430.12909782,0.00027096,2]
[340954142,1730153440948,-44169.17061072,0.00027097,4]
[340954210,1730153446487,-200.11,0.00027097,10]
[340954211,1730153446497,-69920.76086528,0.00027097,4]
[340954212,1730153446507,-27305.5309682,0.00027097,4]
[340954213,1730153446516,-1629.18,0.000271,2]
[340954214,1730153446526,-147514.3832581,0.00027107,2]
[340954215,1730153446536,-2800.0,0.00027107,2]
[340954216,1730153446546,-504.23552237,0.00027107,10]
[340954217,1730153446556,-500.0,0.00027107,10]
[340954218,1730153446568,-318.0,0.00027122,2]
[340954219,1730153446578,-500.0,0.00027123,4]
[340954220,1730153446588,-586.96,0.00027123,4]
[340954221,1730153446597,-500.0,0.00027123,4]
[340954222,1730153446608,-500.0,0.00027123,4]
[340954223,1730153446618,-500.0,0.00027123,4]
[340954224,1730153446627,-942.34,0.00027123,4]
[340954225,1730153446638,-1539.45,0.00027123,4]
[340954226,1730153446649,-500.0,0.00027123,4]
[340954227,1730153446663,-38029.9771585,0.00027163,4]
[340954228,1730153446673,-9101.84365607,0.00027163,4]
[340954229,1730153446683,-500.0,0.00027173,2]
[340954230,1730153446695,-500.0,0.00027173,2]
[340954231,1730153446705,-461.0,0.00027173,2]
[340954232,1730153446714,-461.0,0.00027173,2]
[340954233,1730153446724,-461.0,0.00027173,2]
[340954234,1730153446735,-461.0,0.00027173,2]
[340954235,1730153446745,-461.0,0.00027173,2]
[340954236,1730153446755,-461.0,0.00027173,2]
[340954237,1730153446765,-461.0,0.00027173,2]
[340954238,1730153446774,-461.0,0.00027173,2]
[340954239,1730153446783,-461.0,0.00027173,2]
[340954240,1730153446793,-461.0,0.00027173,2]
[340954241,1730153446802,-461.0,0.00027173,2]
[340954242,1730153446814,-461.0,0.00027173,2]
[340954243,1730153446831,-461.0,0.00027173,2]
[340954244,1730153446840,-461.0,0.00027173,2]
[340954245,1730153446852,-461.0,0.00027173,2]
[340954246,1730153446862,-461.0,0.00027173,2]
[340954247,1730153446871,-461.0,0.00027173,2]
[340954248,1730153446882,-461.0,0.00027173,2]
[340954249,1730153446892,-461.0,0.00027173,2]
[340954250,1730153446901,-461.0,0.00027173,2]
[340954251,1730153446912,-461.0,0.00027173,2]
[340954252,1730153446922,-461.0,0.00027173,2]
[340954253,1730153446932,-461.0,0.00027173,2]
[340954254,1730153446942,-468.67485841,0.00027173,2]
[340954255,1730153446952,-500.0,0.00027173,2]
[340954256,1730153446962,-500.0,0.00027173,2]
[340954257,1730153446972,-500.0,0.00027173,2]
[340954258,1730153446981,-500.0,0.00027173,2]
[340954259,1730153446991,-500.0,0.00027173,2]
[340954260,1730153447000,-760.61053519,0.00027173,2]
[340954261,1730153447009,-500.0,0.00027173,2]
[340954262,1730153447019,-500.0,0.00027173,2]
[340954263,1730153447029,-500.0,0.00027173,2]
[340954264,1730153447040,-501.90918312,0.00027173,2]
[340954265,1730153447049,-244.78861252,0.00027173,2]
[340954266,1730153447059,-500.0,0.00027173,2]
[340954267,1730153447077,-500.0,0.00027173,2]
[340954268,1730153447087,-500.0,0.00027173,2]
[340954269,1730153447096,-540.93155359,0.00027173,2]
[340954270,1730153447107,-3424.3,0.0002734,2]
[340954271,1730153447117,-151.0,0.00027348,3]
[340954272,1730153447126,-500.0,0.00027373,2]
[340954273,1730153447136,-520.33596869,0.00027397,2]
[340954274,1730153447146,-385.01164652,0.00027397,4]
[340954275,1730153447155,-586.96,0.00027397,4]
[340954276,1730153447165,-500.0,0.00027397,4]
[340954277,1730153447174,-500.0,0.00027397,4]
[340954278,1730153447185,-500.0,0.00027397,4]
[340954279,1730153447195,-942.34,0.00027397,4]
[340954280,1730153447205,-1539.45,0.00027397,4]
[340954281,1730153447215,-500.0,0.00027397,4]
[340954282,1730153447225,-355.819,0.0002752,2]
[340954283,1730153447235,-306.0,0.0002761,2]
[340954284,1730153447245,-160.0,0.00027635,3]
[340954285,1730153447255,-162.79055913,0.00027647,10]
[340954286,1730153447265,-151.0,0.00027648,7]
[340954287,1730153447275,-155.913292,0.00027648,7]
[340954288,1730153447285,-170.203329,0.00027648,7]
[340954289,1730153447295,-155.913292,0.00027648,7]
[340954290,1730153447305,-170.203329,0.00027648,7]
[340954291,1730153447323,-151.0,0.00027648,7]
[340954292,1730153447334,-76059.954317,0.00027648,4]
[340954293,1730153447343,-63712.9055925,0.00027648,4]
[340954294,1730153447353,-41274.99460407,0.00027658,2]
[340954295,1730153447366,-6300.0,0.00027658,2]
[340954296,1730153447378,-11904.72225477,0.00027658,2]
[340954297,1730153447467,-7924.56836759,0.00027658,2]
[340954301,1730153805758,160.109674,0.00013973,2]
[340954303,1730153898251,-500.0,0.00025001,30]
[340954304,1730153898276,-500.0,0.00025001,30]
[340954305,1730153898301,-800.0,0.00025001,30]
[340954306,1730153898325,-500.0,0.00025001,30]
[340954307,1730153898351,-500.0,0.00025001,30]
[340954308,1730153898376,-500.000001,0.00025001,30]
[340954309,1730153898419,-277.45,0.000277,30]
[340954310,1730153898444,-532.04,0.000277,30]
[340954311,1730153898610,-200.0,0.00028,120]
[340954312,1730153898640,-24355.14253204,0.00029,30]
[340954313,1730153898666,-277.45,0.000291,30]
[340954314,1730153898690,-532.04,0.000291,30]
[340954315,1730153898716,-151.0,0.0003,120]
[340954316,1730153898740,-261.92244,0.0003,120]
[340954317,1730153898764,-151.0,0.0003,120]
[340954318,1730153898790,-200.0,0.0003,120]
[340954319,1730153898816,-10000.0,0.00030137,90]
[340954320,1730153898842,-532.04,0.000307,30]
[340954321,1730153898866,-277.45,0.000307,30]
[340954322,1730153898898,-151.0,0.00030986,120]
[340954323,1730153898922,-500.0,0.00031502,30]
[340954324,1730153898947,-601.27491606,0.00031502,30]
[340954325,1730153898972,-151.0,0.00031507,120]
[340954326,1730153898998,-1000.0,0.000318,30]
[340954327,1730153899023,-4456.8798,0.00031953,30]
[340954328,1730153899047,-151.0,0.00031973,120]
[340954329,1730153899073,-5086.0,0.00032,60]
[340954330,1730153899097,-200.0,0.00032,120]
[340954331,1730153899124,-532.04,0.000324,30]
[340954332,1730153899150,-277.45,0.000324,30]
[340954333,1730153899174,-387.0,0.000325,80]
[340954334,1730153899198,-189.0,0.00032847,120]
[340954335,1730153899222,-150.5,0.0003285,120]
[340954336,1730153899247,-189.0,0.00032857,120]
[340954337,1730153899270,-150.5,0.0003286,120]
[340954338,1730153899295,-189.0,0.00032867,120]
[340954339,1730153899319,-176.31,0.00032867,120]
[340954340,1730153899343,-150.5,0.0003287,120]
[340954341,1730153899368,-603.161088,0.00032877,120]
[340954342,1730153899394,-9884.72,0.00032877,60]
[340954343,1730153899417,-6138.79,0.00032877,30]
[340954344,1730153899440,-500.0,0.00032934,30]
[340954345,1730153899465,-500.0,0.00032934,30]
[340954346,1730153899489,-208.12674423,0.00032934,30]
[340954347,1730153899514,-151.0,0.00032959,120]
[340954348,1730153899540,-229.6,0.00033,120]
[340954349,1730153899566,-151.0,0.00033014,120]
[340954350,1730153899590,-500.0,0.00033444,60]
[340954351,1730153899614,-1793.2,0.000335,30]
[340954352,1730153899642,-32568.23530539,0.00033696,60]
[340954353,1730153899667,-633.86,0.000337,30]
[340954354,1730153899696,-277.45,0.000338,30]
[340954355,1730153899720,-532.04,0.000338,30]
[340954356,1730153899745,-151.0,0.00033945,120]
[340954357,1730153899771,-200.0,0.00034,120]
[340954358,1730153899797,-1000.0,0.00034,120]
[340954359,1730153899822,-5328.94006483,0.00034,30]
[340954360,1730153899848,-150.0,0.00034337,120]
[340954361,1730153899873,-150.0,0.00034381,120]
[340954362,1730153899901,-151.0,0.00034521,120]
[340954363,1730153899927,-500.0,0.0003454,60]
[340954364,1730153899951,-150.0,0.00034641,120]
[340954365,1730153899976,-500.0,0.00034654,120]
[340954366,1730153900001,-366.13,0.00034654,120]
[340954367,1730153900025,-1793.2,0.000348,30]
[340954368,1730153900050,-151.0,0.00034932,120]
[340954369,1730153900074,-102756.1563813,0.00035,120]
[340954370,1730153900098,-230.0,0.00035,30]
[340954371,1730153900122,-50000.0,0.00035,120]
[340954372,1730153900152,-50000.0,0.00035,30]
[340954373,1730153900177,-1010.52,0.00035,30]
[340954374,1730153900200,-10000.0,0.00035,60]
[340954375,1730153900224,-462.68782752,0.00035,120]
[340954376,1730153900249,-602.19946736,0.00035027,120]
[340954377,1730153900273,-600.0,0.00035068,120]
[340954378,1730153900297,-983.61177045,0.00035084,120]
[340954379,1730153900321,-633.86,0.000351,30]
[340954380,1730153900346,-150.0,0.00035175,120]
[340954381,1730153900370,-277.45,0.000352,30]
[340954382,1730153900395,-532.04,0.000352,30]
[340954383,1730153900420,-150.0,0.00035404,120]
[340954384,1730153900444,-150.0,0.00035452,120]
[340954385,1730153900468,-374.362,0.0003548,120]
[340954386,1730153900492,-3435.02110533,0.000355,30]
[340954387,1730153900521,-260.0,0.000356,80]
[340954388,1730153900544,-150.0,0.000356,80]
[340954389,1730153900571,-999.27523015,0.00035621,30]
[340954390,1730153900595,-495.41285041,0.00035636,60]
[340954391,1730153900619,-500.0,0.0003564,30]
[340954392,1730153900645,-5000.0,0.00035651,30]
[340954393,1730153900668,-300.0,0.00035653,30]
[340954394,1730153900692,-300.0,0.00035653,30]
[340954395,1730153900716,-300.0,0.00035653,30]
[340954396,1730153900740,-300.0,0.00035653,30]
[340954397,1730153900763,-300.0,0.00035653,30]
[340954398,1730153900787,-300.0,0.00035653,30]
[340954399,1730153900814,-300.0,0.00035653,30]
[340954400,1730153900839,-300.0,0.00035653,30]
[340954401,1730153900862,-300.0,0.00035653,30]
[340954402,1730153900887,-300.0,0.00035653,30]
[340954403,1730153900914,-10000.0,0.00035655,30]
[340954404,1730153900940,-189.0,0.0003577,120]
[340954405,1730153900966,-150.0,0.00035774,120]
[340954406,1730153900991,-189.0,0.0003578,120]
[340954407,1730153901017,-8000.0,0.00035782,30]
[340954408,1730153901044,-189.0,0.0003579,120]
[340954409,1730153901069,-1000.0,0.000358,30]
[340954410,1730153901094,-200.0,0.000358,30]
[340954411,1730153901118,-190.80539169,0.00035822,120]
[340954412,1730153901250,-4814.91284519,0.00035831,30]
[340954413,1730153901279,-2399.0,0.00035831,30]
[340954414,1730153901304,-2399.0,0.00035831,30]
[340954415,1730153901330,-2399.0,0.00035831,30]
[340954416,1730153901356,-2399.0,0.00035831,30]
[340954417,1730153901385,-2399.0,0.00035831,30]
[340954418,1730153901410,-2399.0,0.00035831,30]
[340954419,1730153901435,-2399.0,0.00035831,30]
[340954420,1730153901460,-2399.0,0.00035831,30]
[340954421,1730153901487,-2399.0,0.00035831,30]
[340954422,1730153901512,-2399.0,0.00035831,30]
[340954423,1730153901537,-2399.0,0.00035831,30]
[340954424,1730153901563,-2399.0,0.00035831,30]
[340954425,1730153901588,-2399.0,0.00035831,30]
[340954426,1730153901613,-2399.0,0.00035831,30]
[340954427,1730153901643,-2399.0,0.00035831,30]
[340954428,1730153901668,-2399.0,0.00035831,30]
[340954429,1730153901692,-2399.0,0.00035831,30]
[340954430,1730153901716,-2399.0,0.00035831,30]
[340954431,1730153901740,-1529.18532422,0.00035831,30]
[340954432,1730153901764,-1000.0,0.00035831,30]
[340954433,1730153901787,-1000.0,0.00035831,30]
[340954434,1730153901812,-1000.0,0.00035831,30]
[340954435,1730153901836,-1000.0,0.00035831,30]
[340954436,1730153901859,-1000.0,0.00035831,30]
[340954437,1730153901885,-804.0,0.00035834,30]
[340954438,1730153901914,-480.81,0.000359,31]
[340954439,1730153901942,-480.81,0.000359,31]
[340954440,1730153901969,-480.81,0.000359,31]
[340954441,1730153901997,-480.81,0.000359,31]
[340954442,1730153902023,-480.81,0.000359,31]
[340954443,1730153902053,-480.81,0.000359,31]
[340954444,1730153902080,-480.81,0.000359,31]
[340954445,1730153902105,-480.81,0.000359,31]
[340954446,1730153902133,-480.81,0.000359,31]
[340954447,1730153902158,-480.81,0.000359,31]
[340954448,1730153902185,-480.81,0.000359,31]
[340954449,1730153902210,-480.81,0.000359,31]
[340954450,1730153902235,-151.0,0.00035918,120]
[340954451,1730153902260,-150.0,0.00035998,120]
[340954452,1730153902283,-4532.01890123,0.00036,30]
[340954453,1730153902308,-90000.0,0.00036,30]
[340954454,1730153902332,-432.852,0.00036,120]
[340954455,1730153902366,-1000.0,0.00036,30]
[340954456,1730153902402,-322.0,0.00036,30]
[340954457,1730153902434,-1000.0,0.00036,60]
[340954458,1730153902465,-10051.0,0.00036,30]
[340954459,1730153902497,-200.0,0.00036,120]
[340954460,1730153902530,-151.0,0.00036027,120]
[340954461,1730153902560,-19732.0,0.000361,30]
[340954462,1730153902590,-1437319.4660136,0.000361,30]
[340954463,1730154003175,681.669999,0.00035632,120]
[340954464,1730154005457,249.84790209,0.00020082,2]
[340954466,1730154063849,177.13225758,0.00035632,90]
[340954471,1730154211691,1650.0,0.0002,2]
[340954473,1730154244420,177.13225758,0.00035668,90]
[340954547,1730154351157,54972.3994482,0.00019735,2]
[340954548,1730154357511,203.1566579,0.00019735,2]
[340954551,1730154429109,-300.0,0.00020163,2]
[340954552,1730154429270,-581.59368344,0.00020164,2]
[340954554,1730154431146,-4350.13567744,0.00020164,2]
[340954556,1730154439145,-406.64773777,0.00020164,2]
[340954559,1730154482769,2756.7625293,0.00019609,2]
[340954561,1730154493079,1039.03956437,0.00035668,32]
[340954562,1730154508718,1139.7706436,0.00019445,2]
[340954568,1730154520661,1216.21961226,0.00035682,60]
[340954569,1730154521415,356.45055919,0.00035682,30]
[340954572,1730154522557,1051.21440282,0.0002,120]
[340954573,1730154522860,625.90494016,0.00035682,120]
[340954574,1730154523018,158.82858713,0.00035682,30]
[340954575,1730154523816,150.0,2.75e-05,120]
[340954576,1730154524795,176.33025112,0.00035682,30]
[340954579,1730154525126,1123.26147266,0.00035682,120]
[340954580,1730154525463,1497.4113685,0.00035682,120]
[340954582,1730154527631,1063.26157162,0.00035682,30]
[340954583,1730154528894,150.0,0.0002102,62]
[340954585,1730154529199,1345.00532589,0.00035682,120]
[340954590,1730154545142,-6158.31106535,0.00020164,2]
[340954591,1730154545165,-500.0,0.00020309,2]
[340954592,1730154545185,-1911.242697,0.0002031,2]
[340954593,1730154545206,-300.0,0.00020372,2]
[340954594,1730154545226,-7605.91189792,0.00020373,2]
[340954595,1730154545247,-24900.0,0.00020409,2]
[340954596,1730154545267,-802.4511112,0.00020409,2]
[340954597,1730154545287,-250.0,0.00020473,2]
[340954598,1730154545307,-167.909173,0.00020535,2]
[340954599,1730154545329,-150.0,0.00020557,2]
[340954600,1730154545348,-2082.8991296,0.00020601,2]
[340954601,1730154545367,-6992.4913159,0.0002061,2]
[340954602,1730154545388,-1320.8859143,0.00020682,2]
[340954603,1730154545408,-500.0,0.0002075,2]
[340954604,1730154545435,-3000.0,0.00020787,2]
[340954605,1730154545455,-11496.688164,0.00020849,2]
[340954606,1730154545478,-11311.52314993,0.00020905,2]
[340954607,1730154554189,-300.0,0.00020372,2]
[340954608,1730154554210,-500.0,0.0002075,2]
[340954609,1730154554231,-4556.54728067,0.00020905,2]
[340954610,1730154554252,-189.0,0.0002102,2]
[340954611,1730154554274,-177.325968,0.00021173,2]
[340954612,1730154554296,-380.39297565,0.000212,30]
[340954613,1730154554318,-250.0,0.00021201,2]
[340954614,1730154554340,-250.0,0.00021259,2]
[340954615,1730154554361,-177.325968,0.00021279,2]
[340954616,1730154554384,-250.0,0.00021317,2]
[340954617,1730154554406,-250.0,0.00021375,2]
[340954618,1730154554429,-500.0,0.00021425,2]
[340954619,1730154554454,-500.0,0.00021425,2]
[340954620,1730154554480,-500.0,0.00021425,2]
[340954621,1730154554502,-500.0,0.00021425,2]
[340954622,1730154554527,-250.0,0.00021434,2]
[340954623,1730154554550,-250.0,0.00021492,2]
[340954624,1730154554572,-274.69345008,0.00021533,2]
[340954625,1730154554767,-11496.688164,0.00021534,2]
[340954626,1730154554791,-250.0,0.0002155,2]
[340954627,1730154554814,-250.0,0.00021608,2]
[340954628,1730154554836,-250.0,0.00021666,2]
[340954629,1730154554858,-250.0,0.00021724,2]
[340954630,1730154554881,-250.0,0.00021782,2]
[340954631,1730154554901,-526.95767508,0.00021837,2]
[340954632,1730154554924,-345.19462981,0.00021837,2]
[340954633,1730154554944,-150.25097901,0.00021837,2]
[340954634,1730154554965,-503.70856524,0.00021837,2]
[340954635,1730154554986,-334.3266721,0.00021837,2]
[340954636,1730154555008,-250.0,0.0002184,2]
[340954637,1730154555031,-250.0,0.00021899,2]
[340954638,1730154555054,-250.0,0.00021957,2]
[340954639,1730154555075,-456.97650987,0.00022,30]
[340954640,1730154565164,-25257.35728643,0.00022,30]
[340954641,1730154565189,-250.0,0.00022015,2]
[340954642,1730154565210,-166.666666,0.00022023,2]
[340954643,1730154565232,-250.0,0.00022073,2]
[340954644,1730154565254,-506.63368051,0.00022085,2]
[340954645,1730154565289,-3458.5507096,0.00022085,2]
[340954646,1730154565311,-1000.0,0.0002212,2]
[340954647,1730154565333,-250.0,0.00022131,2]
[340954648,1730154565355,-195.53,0.00022166,2]
[340954649,1730154565378,-229.74537826,0.00022174,2]
[340954650,1730154568129,-190.25462174,0.00022174,2]
[340954651,1730154568150,-250.0,0.00022189,2]
[340954652,1730154568172,-250.0,0.00022247,2]
[340954653,1730154568193,-250.0,0.00022306,2]
[340954654,1730154568213,-3485.09719601,0.000224,2]
[340954655,1730154572100,-1054.31462419,0.00021915,2]
[340954656,1730154572121,-8898.98487328,0.000224,2]
[340954657,1730154572141,-500.2316279,0.00022404,2]
[340954658,1730154572162,-420.0,0.00022409,2]
[340954659,1730154572183,-166.666666,0.00022624,2]
[340954660,1730154572525,430.34320264,0.00021533,2]
[340954703,1730154632776,-300.0,0.00021532,2]
[340954705,1730154632785,-300.0,0.00021532,2]
[340954707,1730154632794,-174.5920746,0.00021584,2]
[340954709,1730154632803,-513.64058667,0.00022784,2]
[340954754,1730154638624,-40.5068643,0.00022784,2]
[340954756,1730154638634,-10391.9931357,0.00022785,3]
[340954758,1730154638649,-23407.0364538,0.00022785,3]
[340954760,1730154638657,-9810.90237187,0.00022785,3]
[340954762,1730154638667,-1000.0,0.00022795,2]
[340954763,1730154638676,-585.93844699,0.00022852,2]
[340954764,1730154638685,-150.999997,0.00023,2]
[340954765,1730154638694,-166.666666,0.00023224,2]
[340954766,1730154638703,-603.88460413,0.00023273,2]
[340954767,1730154638712,-500.0,0.00023273,2]
[340954768,1730154638721,-500.0,0.00023273,2]
[340954769,1730154638732,-5000.0,0.00023287,2]
[340954770,1730154638741,-2500.0,0.00023287,2]
[340954771,1730154638751,-420.0,0.00023409,2]
[340954772,1730154638760,-500.0,0.00023447,2]
[340954773,1730154638769,-500.0,0.00023447,2]
[340954774,1730154638779,-505.58537528,0.00023447,2]
[340954775,1730154638787,-500.0,0.00023447,2]
[340954776,1730154638796,-500.74103861,0.00023447,2]
[340954777,1730154638805,-370.65402092,0.00023447,2]
[340954778,1730154638814,-500.0,0.00023447,2]
[340954779,1730154638823,-538.22275014,0.00023447,2]
[340954780,1730154638832,-500.0,0.00023447,2]
[340954781,1730154638841,-500.0,0.00023447,2]
[340954782,1730154638850,-500.0,0.00023447,2]
[340954783,1730154638859,-500.0,0.00023447,2]